bitfinex/quotes_BTCUSD_20250522
["timestamp","ask_amount","ask_price","bid_price","bid_amount"]
[1747880539717,0.49904858,110230.0,110220.0,0.43403357]
[1747880540273,0.49904849,110230.0,110220.0,0.43403357]
[1747880540475,0.47198314,110230.0,110220.0,0.43403357]
[1747880541066,0.46291113,110230.0,110220.0,0.45217884]
[1747880541270,0.18163985,110230.0,110220.0,0.69242017]
[1747880541520,0.45383985,110230.0,110220.0,0.69242025]
[1747880541722,0.27234897,110230.0,110220.0,0.7014926]
[1747880541878,0.47193057,110230.0,110220.0,0.4837472]
[1747880542082,0.47193049,110230.0,110220.0,0.4837472]
[1747880542287,0.48100201,110230.0,110220.0,0.4837472]
[1747880542512,0.00014897,110230.0,110220.0,0.67427523]
[1747880542717,0.00014897,110230.0,110220.0,0.98128318]
[1747880542997,0.27230897,110230.0,110220.0,0.98128318]
[1747880543215,0.00014897,110230.0,110220.0,0.98128318]
[1747880544044,0.00014897,110230.0,110220.0,1.35904318]
[1747880544256,0.00014897,110230.0,110220.0,1.36104318]
[1747880544481,0.00014897,110230.0,110220.0,0.9481104]
[1747880544712,0.00014897,110230.0,110220.0,1.3258704]
[1747880545778,0.19973057,110230.0,110220.0,0.82829442]
[1747880545993,0.2088021,110230.0,110220.0,0.84643986]
[1747880546197,0.47185049,110230.0,110220.0,0.4596471]
[1747880546413,0.47185115,110230.0,110220.0,0.342]
[1747880547517,0.46277954,110230.0,110220.0,0.002]
[1747880547869,0.47185057,110230.0,110220.0,0.002]
[1747880548098,0.48092226,110230.0,110220.0,0.01107276]
[1747880548297,0.48092226,110230.0,110220.0,0.002]
[1747880548298,0.48999411,110230.0,110220.0,0.002]
[1747880548466,0.48092226,110230.0,110220.0,0.002]
[1747880548665,0.48999403,110230.0,110220.0,0.002]
[1747880549541,0.4899946,110230.0,110220.0,0.002]
[1747880549718,0.48092308,110230.0,110220.0,0.002]
[1747880549915,0.47185139,110230.0,110220.0,0.002]
[1747880551645,0.47185139,110230.0,110220.0,0.001]
[1747880551858,0.18145527,110220.0,110210.0,0.8713426]
[1747880552029,0.19052745,110220.0,110210.0,0.98899027]
[1747880552271,0.19959955,110220.0,110210.0,0.97991702]
[1747880552510,0.19959955,110220.0,110210.0,0.97084369]
[1747880552713,0.19959955,110220.0,110210.0,0.97991694]
[1747880552937,0.19065929,110230.0,110220.0,0.18145527]
[1747880553142,0.28134033,110230.0,110220.0,0.65372624]
[1747880553396,0.28134025,110230.0,110220.0,0.66053069]
[1747880553627,0.29041161,110230.0,110220.0,0.66053069]
[1747880553814,0.29041161,110230.0,110220.0,0.66960287]
[1747880554041,0.48092193,110230.0,110220.0,0.65145834]
[1747880554248,0.48092193,110230.0,110220.0,0.45934757]
[1747880554455,0.48092193,110230.0,110220.0,0.64080284]
[1747880554803,0.48092193,110230.0,110220.0,0.65894778]
[1747880554976,0.48092193,110230.0,110220.0,0.65894786]
[1747880555173,0.48092193,110230.0,110220.0,0.66802004]
[1747880556285,0.29041161,110230.0,110220.0,0.66802004]
[1747880556669,0.29948313,110230.0,110220.0,0.66802004]
[1747880557432,0.29041161,110230.0,110220.0,0.66802004]
[1747880557631,0.48092193,110230.0,110220.0,0.55584203]
[1747880557852,0.29948313,110230.0,110220.0,0.56491421]
[1747880558375,0.29948305,110230.0,110220.0,0.56491421]
[1747880558612,0.30855457,110230.0,110220.0,0.56491421]
[1747880558927,0.48999337,110230.0,110220.0,0.56491421]
[1747880559169,0.21787337,110230.0,110220.0,0.57593014]
[1747880559298,0.48999337,110230.0,110220.0,0.58139881]
[1747880559506,0.03643457,110230.0,110220.0,0.59047099]
[1747880559710,0.30855457,110230.0,110220.0,0.59047099]
[1747880560129,0.03643457,110230.0,110220.0,0.59047099]
[1747880560310,0.31762626,110230.0,110220.0,0.59047099]
[1747880560508,0.31762618,110230.0,110220.0,0.59047099]
[1747880560975,0.00014897,110230.0,110220.0,0.94697099]
[1747880561816,0.00014897,110230.0,110220.0,1.93058699]
[1747880561964,0.00014897,110230.0,110220.0,1.67725699]
[1747880562172,0.00014897,110230.0,110220.0,1.51025199]
[1747880562371,0.00014897,110230.0,110220.0,1.45407899]
[1747880563095,0.00014897,110230.0,110220.0,1.32861099]
[1747880564136,0.00014897,110230.0,110220.0,0.95497099]
[1747880566077,0.00014897,110230.0,110220.0,1.36317099]
[1747880566657,0.00014897,110230.0,110220.0,1.09938033]
[1747880566836,0.00014897,110230.0,110220.0,1.35215506]
[1747880567677,0.00014897,110230.0,110220.0,1.33565506]
[1747880568579,0.00014897,110230.0,110220.0,1.35185506]
[1747880569260,0.00014897,110230.0,110220.0,1.33565506]
[1747880569460,0.00014897,110230.0,110220.0,1.42968863]
[1747880569666,0.00014897,110230.0,110220.0,1.02148863]
[1747880572199,0.18158777,110230.0,110220.0,0.10591933]
[1747880572452,0.00922016,110230.0,110220.0,0.3091238]
[1747880572655,0.01829152,110230.0,110220.0,0.91291446]
[1747880572869,0.01829152,110230.0,110220.0,0.57291446]
[1747880573053,0.01829152,110230.0,110220.0,0.92745531]
[1747880573248,0.01829152,110230.0,110220.0,1.02148888]
[1747880573613,0.02736296,110230.0,110220.0,1.02148888]
[1747880574144,0.0182916,110230.0,110220.0,1.02148888]
[1747880574341,0.0182916,110230.0,110220.0,1.01348888]
[1747880574843,0.0182916,110230.0,110220.0,1.01848888]
[1747880575076,0.20880209,110230.0,110220.0,1.0094167]
[1747880575305,0.20880192,110230.0,110220.0,0.66066465]
[1747880575437,0.21787361,110230.0,110220.0,0.65159263]
[1747880575639,0.20880192,110230.0,110220.0,0.66066498]
[1747880575862,0.21787353,110230.0,110220.0,0.66973724]
[1747880576062,0.21787353,110230.0,110220.0,0.66066498]
[1747880576923,0.21787403,110230.0,110220.0,0.66066498]
[1747880577322,0.20880234,110230.0,110220.0,0.66066506]
[1747880577732,0.19973073,110230.0,110220.0,0.76377098]
[1747880578987,0.19973073,110230.0,110220.0,0.76377106]
[1747880579180,0.20880242,110230.0,110220.0,0.76377114]
[1747880579388,0.20880242,110230.0,110220.0,0.75469838]
[1747880580133,0.20880242,110230.0,110220.0,1.01848904]
[1747880580662,0.20880242,110230.0,110220.0,0.99127151]
[1747880580797,0.21787436,110230.0,110220.0,0.89723794]
[1747880581003,0.20880242,110230.0,110220.0,0.91538304]
[1747880581265,0.19973073,110230.0,110220.0,0.92445547]
[1747880581411,0.84941073,110230.0,110220.0,0.90631053]
[1747880581618,0.00014897,110230.0,110220.0,0.91538296]
[1747880581828,0.46966777,110230.0,110220.0,0.09903357]
[1747880582036,0.48781106,110230.0,110220.0,0.005]
[1747880583414,0.48781106,110230.0,110220.0,0.003]
[1747880583616,0.21611832,110210.0,110200.0,0.34]
[1747880583822,0.86583832,110210.0,110200.0,0.34]
[1747880584186,0.84933832,110210.0,110200.0,0.34]
[1747880584361,0.84933832,110210.0,110200.0,0.43403357]
[1747880586187,0.86553832,110210.0,110200.0,0.34]
[1747880586667,0.84933832,110210.0,110200.0,0.60379066]
[1747880586894,0.27212,110210.0,110200.0,0.92107592]
[1747880587115,0.4898849,110210.0,110200.0,0.69782423]
[1747880587335,0.4898849,110210.0,110200.0,0.53285559]
[1747880588255,0.48081132,110210.0,110200.0,0.71634379]
[1747880588439,0.48988482,110210.0,110200.0,0.98013445]
[1747880588651,0.48988482,110210.0,110200.0,0.78757193]
[1747880589095,0.4989584,110210.0,110200.0,0.79664625]
[1747880589627,0.4989584,110210.0,110200.0,0.80572049]
[1747880590188,0.48988482,110210.0,110200.0,0.81479465]
[1747880590397,0.48988482,110210.0,110200.0,0.80572049]
[1747880590617,0.48988482,110210.0,110200.0,0.81479465]
[1747880590837,0.48988482,110210.0,110200.0,0.80572049]
[1747880592100,0.48988482,110210.0,110200.0,0.81479465]
[1747880592335,0.48988482,110210.0,110200.0,0.80572049]
[1747880592516,0.48988482,110210.0,110200.0,0.71597279]
[1747880593052,0.48081132,110210.0,110200.0,0.89746099]
[1747880593257,0.48988482,110210.0,110200.0,0.90653515]
[1747880593475,0.48988482,110210.0,110200.0,0.89746099]
[1747880594106,0.48988482,110210.0,110200.0,0.99149456]
[1747880594340,0.48988482,110210.0,110200.0,1.00056872]
[1747880594539,0.48988482,110210.0,110200.0,0.99149456]
[1747880594916,0.48988482,110210.0,110200.0,1.00056872]
[1747880595145,0.20869132,110210.0,110200.0,1.00056872]
[1747880595356,0.1905416,110220.0,110210.0,0.53054523]
[1747880595557,0.18158777,110230.0,110220.0,0.53960038]
[1747880595558,0.56801905,110230.0,110220.0,0.53960038]
[1747880595762,0.86739404,110230.0,110220.0,0.80339128]
[1747880595894,0.86739436,110230.0,110220.0,0.61286342]
[1747880596099,0.86739436,110230.0,110220.0,0.35814544]
[1747880596491,0.85832292,110230.0,110220.0,0.34907276]
[1747880596693,0.84925131,110230.0,110220.0,0.34]
[1747880598503,0.57709131,110230.0,110220.0,0.56177043]
[1747880598678,0.84925131,110230.0,110220.0,0.57084311]
[1747880598884,0.84925131,110230.0,110220.0,0.38031516]
[1747880599086,0.84017962,110230.0,110220.0,0.3712424]
[1747880599270,0.85517962,110230.0,110220.0,0.34]
[1747880600137,0.01814626,110210.0,110200.0,0.49611593]
[1747880600352,0.29026626,110210.0,110200.0,0.9301495]
[1747880600480,0.29026626,110210.0,110200.0,1.02418307]
[1747880601330,0.29026626,110210.0,110200.0,1.02718307]
[1747880601672,0.29026626,110210.0,110200.0,1.02818307]
[1747880602192,0.29026626,110210.0,110200.0,1.02518315]
[1747880602604,0.29026626,110210.0,110200.0,1.03425698]
[1747880603003,0.47173799,110210.0,110200.0,1.02518315]
[1747880603404,0.47173799,110210.0,110200.0,1.03425698]
[1747880603627,0.47173799,110210.0,110200.0,1.03525698]
[1747880603793,0.28119301,110210.0,110200.0,1.03525698]
[1747880604014,0.29026618,110210.0,110200.0,1.03525698]
[1747880604768,0.47173791,110210.0,110200.0,1.01710924]
[1747880604972,0.47173791,110210.0,110200.0,1.02618307]
[1747880605191,0.47173791,110210.0,110200.0,1.02618315]
[1747880605390,0.48081124,110210.0,110200.0,1.02618315]
[1747880605593,0.47173791,110210.0,110200.0,1.03525698]
[1747880606764,0.47173791,110210.0,110200.0,1.02618315]
[1747880606965,0.48703791,110210.0,110200.0,0.73517051]
[1747880607167,0.48703791,110210.0,110200.0,0.64113694]
[1747880607168,0.50518466,110210.0,110200.0,0.64113694]
[1747880607385,0.49611165,110210.0,110200.0,0.45057442]
[1747880607593,0.48703881,110210.0,110200.0,0.342]
[1747880609479,0.47796531,110210.0,110200.0,0.342]
[1747880613007,0.55121716,110210.0,110200.0,0.002]
[1747880613217,0.47796531,110210.0,110200.0,0.002]
[1747880614087,0.20606261,110200.0,110190.0,0.34]
[1747880614306,0.60161068,110200.0,110190.0,0.34]
[1747880614571,0.58611068,110200.0,110190.0,0.34]
[1747880614776,0.85827068,110200.0,110190.0,0.68740613]
[1747880615384,0.85827068,110200.0,110190.0,0.68840613]
[1747880615590,0.19963627,110200.0,110190.0,0.68840613]
[1747880615803,0.19065946,110230.0,110210.0,0.56323234]
[1747880616036,0.65863202,110220.0,110210.0,1.00807638]
[1747880616273,0.21787369,110230.0,110220.0,0.34]
[1747880616468,0.8583625,110230.0,110220.0,0.34]
[1747880616691,0.8583625,110230.0,110220.0,0.34836118]
[1747880617057,0.5771304,110230.0,110220.0,0.63292261]
[1747880617401,0.85836184,110230.0,110220.0,0.98167783]
[1747880617697,0.84929032,110230.0,110220.0,0.97260548]
[1747880618132,0.86743345,110230.0,110220.0,0.97260548]
[1747880618405,0.48096176,110230.0,110220.0,0.96353305]
[1747880618610,0.00014897,110230.0,110220.0,1.01241851]
[1747880620011,0.00014897,110230.0,110220.0,1.01441851]
[1747880620242,0.00014897,110230.0,110220.0,1.01241851]
[1747880620463,0.00014897,110230.0,110220.0,1.01541851]
[1747880620662,0.00014897,110230.0,110220.0,1.01941851]
[1747880620899,0.00014897,110230.0,110220.0,1.01641851]
[1747880621278,0.00014897,110230.0,110220.0,1.02041851]
[1747880627276,0.07308272,110260.0,110250.0,0.53954622]
[1747880627526,0.0821498,110280.0,110270.0,0.53950987]
[1747880627742,0.34520272,110280.0,110270.0,0.80330053]
[1747880627951,0.34520272,110280.0,110270.0,0.90640217]
[1747880628128,0.55376141,110280.0,110270.0,0.43403357]
[1747880628396,0.5609945,110280.0,110270.0,0.36875379]
[1747880628752,0.56114347,110280.0,110270.0,0.34]
[1747880630264,0.48806075,110280.0,110270.0,0.34]
[1747880630483,0.49106075,110280.0,110270.0,0.34]
[1747880633356,0.18142702,110240.0,110220.0,0.24756372]
[1747880633515,0.01814107,110240.0,110230.0,0.29361583]
[1747880633727,0.27204,110240.0,110230.0,0.40169142]
[1747880633931,0.27204,110240.0,110230.0,0.67095157]
[1747880634299,0.48067462,110240.0,110230.0,0.78082846]
[1747880634523,0.471604,110240.0,110230.0,0.09403357]
[1747880634743,0.471604,110240.0,110230.0,0.43703357]
[1747880634954,0.471604,110240.0,110230.0,0.003]
[1747880635196,0.486704,110240.0,110230.0,0.003]
[1747880635976,0.19958151,110230.0,110220.0,0.64163778]
[1747880636176,0.19958151,110230.0,110220.0,0.83366609]
[1747880636376,0.20865295,110230.0,110220.0,0.83366609]
[1747880636601,0.20865295,110230.0,110220.0,0.8245935]
[1747880636797,0.20865295,110230.0,110220.0,0.83366609]
[1747880637201,0.19958135,110230.0,110220.0,1.02419387]
[1747880637420,0.20865287,110230.0,110220.0,1.01512136]
[1747880638121,0.19958135,110230.0,110220.0,1.01512136]
[1747880638649,0.19958135,110230.0,110220.0,1.02419387]
[1747880639355,0.19958135,110230.0,110220.0,1.01512136]
[1747880640100,0.20865287,110230.0,110220.0,1.01512136]
[1747880640645,0.19049748,110250.0,110230.0,0.21772556]
[1747880640835,0.57632728,110250.0,110240.0,0.26379066]
[1747880641160,0.64884,110250.0,110240.0,0.92100028]
[1747880641372,0.64884,110250.0,110240.0,0.93007098]
[1747880641572,0.58543543,110260.0,110250.0,0.3581405]
[1747880641728,0.85751543,110260.0,110250.0,0.64265009]
[1747880641938,0.85751543,110260.0,110250.0,0.68220426]
[1747880642147,0.85751543,110260.0,110250.0,0.48265803]
[1747880642489,0.85751535,110260.0,110250.0,0.49172824]
[1747880642688,0.85751535,110260.0,110250.0,0.48265803]
[1747880643250,0.86658457,110260.0,110250.0,0.47358774]
[1747880643429,0.85751535,110260.0,110250.0,0.48265795]
[1747880643572,0.85951535,110260.0,110250.0,0.48265803]
[1747880643784,0.19249724,110260.0,110250.0,0.67860477]
[1747880643982,0.27708,110260.0,110250.0,0.98620531]
[1747880644389,0.27508,110260.0,110250.0,0.98620531]
[1747880645273,0.45646944,110260.0,110250.0,0.67533036]
[1747880645536,0.45646944,110260.0,110250.0,0.93912102]
[1747880645751,0.27508,110260.0,110250.0,0.95542102]
[1747880646207,0.57625177,110280.0,110270.0,0.34]
[1747880646441,0.85754791,110280.0,110270.0,0.39395276]
[1747880646687,0.85754783,110280.0,110270.0,0.48798633]
[1747880647354,0.20870783,110280.0,110270.0,0.48798633]
[1747880647558,0.48074783,110280.0,110270.0,0.48798633]
[1747880647695,0.48981565,110280.0,110270.0,0.48798633]
[1747880648365,0.48074783,110280.0,110270.0,0.48798633]
[1747880648785,0.48981565,110280.0,110270.0,0.48798633]
[1747880648969,0.00114897,110280.0,110270.0,0.97489578]
[1747880649175,0.27318897,110280.0,110270.0,0.99009578]
[1747880649774,0.27218897,110280.0,110270.0,0.99009578]
[1747880649945,0.27218897,110280.0,110270.0,0.99109578]
[1747880650353,0.27218897,110280.0,110270.0,0.99209578]
[1747880650558,0.00014897,110280.0,110270.0,0.99209578]
[1747880650785,0.27218897,110280.0,110270.0,0.99209578]
[1747880651838,0.68228673,110300.0,110290.0,0.22354011]
[1747880651839,0.1,110300.0,110290.0,0.22354011]
[1747880651965,0.1,110300.0,110290.0,0.97820693]
[1747880652394,0.1,110300.0,110290.0,0.96320693]
[1747880652599,0.1,110300.0,110290.0,0.97940693]
[1747880653212,0.103,110300.0,110290.0,0.97940693]
[1747880653419,0.102,110300.0,110290.0,1.00306822]
[1747880653621,0.102,110300.0,110290.0,0.97940693]
[1747880653818,0.09991467,110300.0,110290.0,0.98140693]
[1747880654016,0.09991467,110300.0,110290.0,0.98340693]
[1747880654379,0.09991467,110300.0,110290.0,0.71961627]
[1747880654597,0.09991467,110300.0,110290.0,0.98340693]
[1747880654797,0.09991467,110300.0,110290.0,0.98140693]
[1747880655275,0.09991467,110300.0,110290.0,1.25340693]
[1747880655479,0.09991467,110300.0,110290.0,1.78035293]
[1747880655680,0.09991467,110300.0,110290.0,1.51956227]
[1747880655889,0.09991467,110300.0,110290.0,1.43692693]
[1747880656092,0.09991467,110300.0,110290.0,1.43992693]
[1747880656916,0.09991467,110300.0,110290.0,1.46712493]
[1747880657722,0.09991467,110300.0,110290.0,1.28460493]
[1747880657921,0.09991467,110300.0,110290.0,1.19451927]
[1747880658101,0.09991467,110300.0,110290.0,1.45826993]
[1747880661031,0.01,110310.0,110300.0,0.88754739]
[1747880661249,0.00107,110330.0,110320.0,1.09226473]
[1747880661470,0.00121895,110330.0,110320.0,1.49458363]
[1747880662128,0.00121895,110330.0,110320.0,2.62808948]
[1747880662346,0.01016502,110350.0,110340.0,0.54580505]
[1747880662565,0.01016502,110350.0,110340.0,0.90362928]
[1747880662769,0.01016502,110350.0,110340.0,0.99766285]
[1747880663397,0.01016502,110350.0,110340.0,1.01356285]
[1747880663599,0.01016502,110350.0,110340.0,1.35228458]
[1747880664018,0.01016502,110350.0,110340.0,1.61607524]
[1747880664237,0.32081213,110380.0,110370.0,0.47217962]
[1747880664440,0.31224945,110380.0,110370.0,0.62016595]
[1747880664652,0.32130873,110380.0,110370.0,0.62016595]
[1747880664858,0.33036792,110380.0,110370.0,0.62016595]
[1747880665101,0.51688692,110380.0,110370.0,0.14798633]
[1747880665309,0.51688692,110380.0,110370.0,0.51707269]
[1747880665483,0.51688692,110380.0,110370.0,0.50801251]
[1747880665658,0.51688684,110380.0,110370.0,0.52613263]
[1747880665888,0.52794645,110380.0,110370.0,0.52613271]
[1747880666065,0.52794645,110380.0,110370.0,0.51707286]
[1747880666066,0.24696734,110380.0,110370.0,0.51707286]
[1747880666268,0.51884734,110380.0,110370.0,0.52613312]
[1747880666516,0.51884734,110380.0,110370.0,0.61110626]
[1747880666517,0.50072845,110380.0,110370.0,0.61110626]
[1747880666725,0.50072845,110380.0,110370.0,0.61110634]
[1747880666967,0.49166884,110380.0,110370.0,0.05395276]
[1747880667213,0.03155555,110380.0,110370.0,0.6347068]
[1747880667416,0.32155386,110380.0,110370.0,0.6347068]
[1747880667834,0.52680612,110380.0,110370.0,0.62564711]
[1747880668036,0.52680612,110380.0,110370.0,0.31774342]
[1747880668250,0.0224966,110380.0,110370.0,0.6347068]
[1747880668475,0.2943366,110380.0,110370.0,0.6347068]
[1747880668677,0.2923366,110380.0,110370.0,0.6347068]
[1747880669037,0.2943366,110380.0,110370.0,0.6347068]
[1747880670138,0.0224966,110380.0,110370.0,0.6347068]
[1747880670724,0.0224966,110380.0,110370.0,0.63215413]
[1747880671401,0.0224966,110380.0,110370.0,0.36836347]
[1747880671618,0.0224966,110380.0,110370.0,0.63215413]
[1747880672295,0.2942966,110380.0,110370.0,0.63215413]
[1747880672494,0.2942966,110380.0,110370.0,0.43278677]
[1747880672791,0.30335563,110380.0,110370.0,0.62305578]
[1747880673002,0.2942966,110380.0,110370.0,0.93134111]
[1747880673295,0.30335555,110380.0,110370.0,0.93134111]
[1747880673548,0.30335555,110380.0,110370.0,0.66755045]
[1747880673746,0.2942966,110380.0,110370.0,0.93134111]
[1747880673945,0.30335547,110380.0,110370.0,0.93134111]
[1747880674180,0.03155547,110380.0,110370.0,0.93134111]
[1747880674315,0.30335547,110380.0,110370.0,0.93134111]
[1747880674696,0.2942966,110380.0,110370.0,0.93134111]
[1747880674901,0.30335563,110380.0,110370.0,0.93134111]
[1747880675153,0.0224966,110380.0,110370.0,0.93134111]
[1747880675375,0.2942966,110380.0,110370.0,0.93134111]
[1747880675564,0.30335555,110380.0,110370.0,0.93134111]
[1747880675769,0.2942966,110380.0,110370.0,0.93134111]
[1747880676186,0.49360715,110380.0,110370.0,0.8709195]
[1747880676392,0.50266659,110380.0,110370.0,0.61618919]
[1747880676538,0.51846659,110380.0,110370.0,0.62524937]
[1747880676744,0.51846659,110380.0,110370.0,0.10857442]
[1747880676941,0.51846709,110380.0,110370.0,0.44857442]
[1747880677351,0.50940707,110380.0,110370.0,0.97739203]
[1747880677543,0.49360707,110380.0,110370.0,0.98645213]
[1747880677743,0.49360707,110380.0,110370.0,0.97739203]
[1747880677970,0.50266651,110380.0,110370.0,0.97739203]
[1747880678166,0.50266651,110380.0,110370.0,0.78712319]
[1747880678381,0.50266651,110380.0,110370.0,0.79618345]
[1747880679033,0.50266651,110380.0,110370.0,0.80524363]
[1747880679563,0.49360707,110380.0,110370.0,0.97739211]
[1747880679796,0.51172587,110380.0,110370.0,0.98645229]
[1747880680233,0.50266643,110380.0,110370.0,0.72266163]
[1747880680408,0.51172596,110380.0,110370.0,0.97739211]
[1747880680611,0.0224966,110380.0,110370.0,0.98645229]
[1747880680815,0.0224966,110380.0,110370.0,1.01997224]
[1747880680816,0.2942566,110380.0,110370.0,1.01997224]
[1747880681955,0.2942566,110380.0,110370.0,1.02482865]
[1747880682124,0.2942566,110380.0,110370.0,1.00942865]
[1747880682335,0.30331547,110380.0,110370.0,1.00942865]
[1747880682540,0.30331547,110380.0,110370.0,0.94373097]
[1747880682749,0.2942566,110380.0,110370.0,0.94373097]
[1747880684573,0.30331547,110380.0,110370.0,0.94373097]
[1747880684909,0.0224966,110380.0,110370.0,0.95963097]
[1747880685114,0.0224966,110380.0,110370.0,1.05366454]
[1747880685314,0.2942566,110380.0,110370.0,1.05366454]
[1747880686138,0.0224966,110380.0,110370.0,1.05366454]
[1747880686768,0.10056,110400.0,110370.0,2.13720469]
[1747880686971,0.06985243,110420.0,110410.0,0.52114301]
[1747880687183,0.04278353,110450.0,110440.0,0.03264981]
[1747880687393,0.03198818,110450.0,110440.0,1.10557904]
[1747880688029,0.03198818,110450.0,110440.0,0.93582195]
[1747880688230,0.03213698,110450.0,110440.0,0.65683129]
[1747880688434,0.02134163,110450.0,110440.0,0.92062195]
[1747880688683,0.02134163,110450.0,110440.0,1.20061261]
[1747880688867,0.02134163,110450.0,110440.0,0.93682195]
[1747880689203,0.02134163,110450.0,110440.0,0.92062195]
[1747880689434,0.2718288,110450.0,110440.0,0.92062195]
[1747880689948,0.2718288,110450.0,110440.0,0.65683129]
[1747880690138,0.2718288,110450.0,110440.0,0.92062195]
[1747880690343,0.0001488,110450.0,110440.0,0.92062195]
[1747880690579,0.2718288,110450.0,110440.0,0.92062195]
[1747880690967,0.2718288,110450.0,110440.0,0.91156768]
[1747880691176,0.2718288,110450.0,110440.0,0.44857442]
[1747880691177,0.29728193,110450.0,110440.0,0.44857442]
[1747880691375,0.30804262,110450.0,110440.0,0.44857442]
[1747880691610,0.4966669,110450.0,110440.0,0.44857442]
[1747880691817,0.47855991,110450.0,110440.0,0.34]
[1747880692652,0.47855991,110450.0,110440.0,0.344]
[1747880692856,0.47855991,110450.0,110440.0,0.342]
[1747880693428,0.47855991,110450.0,110440.0,0.34]
[1747880693676,0.0001488,110450.0,110440.0,0.92062195]
[1747880693923,0.2727888,110450.0,110440.0,0.92062195]
[1747880694550,0.2727888,110450.0,110440.0,1.18441261]
[1747880694695,0.2727888,110450.0,110440.0,0.92062195]
[1747880695393,0.2717888,110450.0,110440.0,0.92062195]
[1747880696236,0.0001488,110450.0,110440.0,1.22629966]
[1747880696445,0.19297896,110460.0,110450.0,0.19013111]
[1747880696684,0.48268382,110460.0,110450.0,0.89700896]
[1747880696923,0.50078983,110460.0,110450.0,0.44857442]
[1747880697389,0.88273736,110460.0,110450.0,0.44857442]
[1747880697953,0.87368382,110460.0,110450.0,0.6387057]
[1747880698155,0.88544239,110460.0,110450.0,0.45762829]
[1747880698556,0.88544239,110460.0,110450.0,0.46668207]
[1747880698785,0.88644239,110460.0,110450.0,0.46668207]
[1747880699213,0.88644239,110460.0,110450.0,0.44857442]
[1747880699416,0.87739008,110460.0,110450.0,0.47250841]
[1747880699615,0.01291795,110460.0,110450.0,0.92643002]
[1747880699946,0.28451795,110460.0,110450.0,0.91426584]
[1747880700578,0.01291795,110460.0,110450.0,0.91426584]
[1747880700788,0.28351795,110460.0,110450.0,0.91426584]
[1747880701405,0.01191795,110460.0,110450.0,0.91426584]
[1747880701600,0.28347795,110460.0,110450.0,0.91426584]
[1747880702245,0.01191795,110460.0,110450.0,0.91426584]
[1747880702452,0.28347795,110460.0,110450.0,0.91426584]
[1747880702673,0.01191795,110460.0,110450.0,0.92926584]
[1747880706075,0.01191795,110460.0,110450.0,2.02186584]
[1747880706953,0.01191795,110460.0,110450.0,1.75807518]
[1747880707165,0.01191795,110460.0,110450.0,2.02186584]
[1747880707873,0.01191795,110460.0,110450.0,2.00686584]
[1747880709206,0.28343795,110460.0,110450.0,2.02276584]
[1747880709413,0.01191795,110460.0,110450.0,2.02276584]
[1747880710370,0.01191795,110460.0,110450.0,2.00686584]
[1747880710574,0.01191795,110460.0,110450.0,2.02336584]
[1747880711387,0.01191795,110460.0,110450.0,2.00686584]
[1747880712015,0.01191795,110460.0,110450.0,1.32246584]
[1747880712841,0.01191795,110460.0,110450.0,1.33746584]
[1747880713335,0.01191795,110460.0,110450.0,1.32246584]
[1747880714540,0.02097026,110460.0,110450.0,1.32246584]
[1747880714764,0.01191795,110460.0,110450.0,1.32246584]
[1747880718008,0.01191795,110460.0,110450.0,1.05867518]
[1747880718179,0.01191795,110460.0,110450.0,1.32246584]
[1747880718595,0.02691795,110460.0,110450.0,1.32246584]
[1747880718764,0.02097026,110460.0,110450.0,1.32246584]
[1747880719194,0.01191795,110460.0,110450.0,1.32246584]
[1747880720257,0.01191795,110460.0,110450.0,1.05867518]
[1747880720416,0.01191795,110460.0,110450.0,1.32246584]
[1747880724566,0.20203127,110460.0,110450.0,1.02246095]
[1747880724789,0.22638382,110460.0,110450.0,1.03151473]
[1747880724998,0.21733127,110460.0,110450.0,1.04056843]
[1747880725202,0.22638374,110460.0,110450.0,1.05867542]
[1747880725402,0.22638374,110460.0,110450.0,1.06772905]
[1747880725807,0.24448909,110460.0,110450.0,0.85043724]
[1747880725962,0.24448901,110460.0,110450.0,0.85043724]
[1747880726759,0.24448901,110460.0,110450.0,0.84138354]
[1747880726892,0.24448958,110460.0,110450.0,0.43318354]
[1747880727092,0.69435831,110460.0,110450.0,0.00582659]
[1747880727297,0.19016039,110440.0,110420.0,0.45397323]
[1747880727482,0.8280702,110430.0,110420.0,0.45412203]
[1747880727690,0.87113573,110430.0,110420.0,0.10006025]
[1747880728130,0.8620808,110430.0,110420.0,0.10006025]
[1747880728508,0.8620808,110430.0,110420.0,0.10206025]
[1747880728914,0.19016039,110440.0,110420.0,0.57440911]
[1747880729151,0.8280702,110430.0,110420.0,0.30678386]
[1747880729352,0.84617998,110430.0,110420.0,0.91057452]
[1747880729847,0.84617998,110430.0,110420.0,0.90151836]
[1747880730048,0.85523499,110430.0,110420.0,0.9125746]
[1747880730253,0.85523499,110430.0,110420.0,0.93068684]
[1747880730469,0.85523499,110430.0,110420.0,0.92163076]
[1747880730651,0.87939017,110430.0,110420.0,0.729448]
[1747880730863,0.87939017,110430.0,110420.0,0.72944809]
[1747880731196,0.87033499,110430.0,110420.0,0.72744809]
[1747880731397,0.87939017,110430.0,110420.0,0.73650433]
[1747880731611,0.87939017,110430.0,110420.0,0.93574317]
[1747880731612,0.87033499,110430.0,110420.0,0.93574317]
[1747880731815,0.21501557,110440.0,110420.0,0.93574301]
[1747880732012,0.84626006,110430.0,110420.0,0.93574301]
[1747880732245,0.83720505,110430.0,110420.0,0.92768709]
[1747880732422,0.83720505,110430.0,110420.0,0.93674309]
[1747880732624,0.84625998,110430.0,110420.0,0.93674309]
[1747880732957,0.85531499,110430.0,110420.0,1.34394309]
[1747880733129,0.85531499,110430.0,110420.0,1.34494309]
[1747880733509,0.83720505,110430.0,110420.0,1.34394309]
[1747880733716,0.83720505,110430.0,110420.0,1.35299909]
[1747880733919,0.84626015,110430.0,110420.0,1.34594317]
[1747880734841,0.84626015,110430.0,110420.0,1.33688709]
[1747880735053,0.85531541,110430.0,110420.0,0.8648011]
[1747880735227,0.86437075,110430.0,110420.0,1.12859176]
[1747880735436,0.88057075,110430.0,110420.0,1.13764809]
[1747880735783,0.88057075,110430.0,110420.0,1.12859176]
[1747880736056,0.88962626,110430.0,110420.0,1.12859176]
[1747880736298,0.88057075,110430.0,110420.0,1.13764809]
[1747880736411,0.88057075,110430.0,110420.0,1.12859176]
[1747880736817,0.88057075,110430.0,110420.0,0.8648011]
[1747880737074,0.88057075,110430.0,110420.0,1.13764809]
[1747880737236,0.85531541,110430.0,110420.0,1.13764809]
[1747880737441,0.84626006,110430.0,110420.0,1.12859176]
[1747880737640,0.85531532,110430.0,110420.0,1.137648]
[1747880737816,0.85531532,110430.0,110420.0,1.14670416]
[1747880738020,0.85531532,110430.0,110420.0,1.137648]
[1747880738651,0.85531532,110430.0,110420.0,1.13177012]
[1747880738854,0.85531532,110430.0,110420.0,0.85892322]
[1747880739059,0.84626006,110430.0,110420.0,1.31289681]
[1747880739267,0.85531532,110430.0,110420.0,1.32195297]
[1747880739665,0.85531532,110430.0,110420.0,1.32195305]
[1747880739878,0.85531532,110430.0,110420.0,1.34006513]
[1747880740281,0.86437083,110430.0,110420.0,1.33100921]